[Event "RUS-ch Rapid Men 2018"]
[Site "Sochi"]
[Date "2018.10.05"]
[Round "1"]
[White "Prokhorko, Mikhail"]
[Black "Vastrukhin, Oleg"]
[Result "0-1"]
[ECO "A40"]
[WhiteElo "2197"]
[BlackElo "2413"]
[Annotator "NA"]
[PlyCount "96"]
[EventDate "2018.10.05"]
[EventType "swiss"]
[EventCountry "RUS"]
[SourceTitle "playchess.com"]
[Source "ChessBase"]
[SourceQuality "1"]
[TimeControl "900+10"]

1. d4 {[%emt 0:00:00]} g6 {[%emt 0:00:00]} 2. Bf4 {[%emt 0:00:00]} Bg7 {[%emt 0:00:00]} 3. e3 {[%emt 0:00:00]} Nf6 {[%emt 0:00:00]} 4. c3 {[%emt 0:00:17]} O-O {[%emt 0:00:00]} 5. h4 {[%emt 0:00:02]} d6 {[%emt 0:00:07]} 6. Be2 {[%emt 0:00:06]} Nc6 {[%emt 0:00:49]} 7. h5 {[%emt 0:00:22]} e5 {[%emt 0:00:03]} 8. Bg5 {[%emt 0:00:09]} h6 {[%emt 0:00:03]} 9. Bxf6 {[%emt 0:00:12]} Qxf6 {[%emt 0:00:03]} 10. Nd2 {[%emt 0:03:02]} g5 {[%emt 0:00:30]} 11. d5 {[%emt 0:00:56]} Nb8 {[%emt 0:00:15]} 12. g4 {[%emt 0:01:04]} Nd7 {[%emt 0:00:14]} 13. Ne4 {[%emt 0:00:48]} Qe7 {[%emt 0:00:01]} 14. Ng3 {[%emt 0:00:01]} e4 {[%emt 0:01:19]} 15. Qc2 {[%emt 0:00:37]} Nf6 {[%emt 0:00:04]} 16. O-O-O {[%emt 0:00:53]} Re8 {[%emt 0:00:55]} 17. Bb5 {[%emt 0:00:50]} Rf8 {[%emt 0:01:04]} 18. Nf5 {[%emt 0:02:46]} Qe5 {[%emt 0:00:13]} 19. Ne2 {[%emt 0:00:20]} a6 {[%emt 0:00:34]} 20. Ba4 {[%emt 0:00:29]} Nxg4 {[%emt 0:00:59]} 21. Nxg7 {[%emt 0:00:16]} Nxf2 {[%emt 0:00:25]} 22. Ne8 {[%emt 0:01:58]} Nxd1 {[%emt 0:00:05]} 23. Rxd1 {[%emt 0:00:28]} b5 {[%emt 0:00:21]} 24. Rd4 {[%emt 0:00:56]} Rxe8 {[%emt 0:00:04]} 25. Bb3 {[%emt 0:00:15]} Bg4 {[%emt 0:00:01]} 26. Qd2 {[%emt 0:00:11]} Bxh5 {[%emt 0:00:03]} 27. Bc2 {[%emt 0:00:00]} f5 {[%emt 0:00:06]} 28. c4 {[%emt 0:00:16]} Qh2 {[%emt 0:00:01]} 29. Bd1 {[%emt 0:00:06]} f4 {[%emt 0:00:19]} 30. exf4 {[%emt 0:00:09]} Bxe2 {[%emt 0:00:01]} 31. Bxe2 {[%emt 0:00:07]} Qxf4 {[%emt 0:00:02]} 32. Bh5 {[%emt 0:00:13]} Qxd2+ {[%emt 0:00:03]} 33. Kxd2 {[%emt 0:00:01]} Re5 {[%emt 0:00:01]} 34. Ke3 {[%emt 0:00:17]} Rf8 {[%emt 0:00:02]} 35. b4 {[%emt 0:00:19]} Rf4 {[%emt 0:00:09]} 36. c5 {[%emt 0:00:18]} Rh4 {[%emt 0:00:09]} 37. Be2 {[%emt 0:00:09]} Rh3+ {[%emt 0:00:07]} 38. Kf2 {[%emt 0:00:12]} Ra3 {[%emt 0:00:01]} 39. Rd1 {[%emt 0:00:17]} Rxa2 {[%emt 0:00:05]} 40. cxd6 {[%emt 0:00:07]} cxd6 {[%emt 0:00:01]} 41. Rc1 {[%emt 0:00:07]} e3+ {[%emt 0:00:01]} 42. Ke1 {[%emt 0:00:06]} Rxd5 {[%emt 0:00:13]} 43. Bh5 {[%emt 0:00:36]} e2 {[%emt 0:00:06]} 44. Rc8+ {[%emt 0:00:11]} Kg7 {[%emt 0:00:01]} 45. Rc7+ {[%emt 0:00:09]} Kf6 {[%emt 0:00:01]} 46. Rf7+ {[%emt 0:00:01]} Ke6 {[%emt 0:00:01]} 47. Kf2 {[%emt 0:00:40]} g4 {[%emt 0:00:17]} 48. Rg7 {[%emt 0:01:26]} Rf5+ {[%emt 0:00:05]} 0-1

[Event "RUS-ch Rapid Men 2018"]
[Site "Sochi"]
[Date "2018.10.05"]
[Round "1"]
[White "Pashkov, Anatolij"]
[Black "Bocharov, Ivan"]
[Result "0-1"]
[ECO "C52"]
[WhiteElo "2196"]
[BlackElo "2565"]
[Annotator "ChessBase"]
[PlyCount "70"]
[EventDate "2018.10.05"]
[EventType "swiss"]
[EventCountry "RUS"]
[SourceTitle "playchess.com"]
[Source "ChessBase"]
[SourceQuality "1"]
[TimeControl "900+10"]

1. e4 {[%emt 0:00:00]} e5 {[%emt 0:00:00]} 2. Nf3 {[%emt 0:00:00]} Nc6 {[%emt 0:00:00]} 3. Bc4 {[%emt 0:00:00]} Bc5 {[%emt 0:00:00]} 4. b4 {[%emt 0:00:07]} Bxb4 {[%emt 0:00:18]} 5. c3 {[%emt 0:00:01]} Ba5 {[%emt 0:02:25]} 6. d4 {[%emt 0:00:06]} d6 {[%emt 0:00:52]} 7. Ng5 {[%emt 0:03:21]} Nh6 {[%emt 0:00:16]} 8. O-O {[%emt 0:05:58]} O-O {[%emt 0:00:03]} 9. h3 {[%emt 0:00:03]} Qf6 {[%emt 0:02:07]} 10. Nf3 {[%emt 0:02:51]} Re8 {[%emt 0:01:08]} 11. Bg5 {[%emt 0:01:00]} Qg6 {[%emt 0:00:02]} 12. d5 {[%emt 0:00:30]} Nb8 {[%emt 0:07:24]} 13. Qa4 {[%emt 0:00:07]} Nd7 {[%emt 0:00:07]} 14. Qxa5 {[%emt 0:00:12]} Nb6 {[%emt 0:00:01]} 15. Bd3 {[%emt 0:00:51]} Bxh3 {[%emt 0:00:03]} 16. gxh3 {[%emt 0:00:09]} f6 {[%emt 0:00:00]} 17. h4 {[%emt 0:01:06]} fxg5 {[%emt 0:00:02]} 18. hxg5 {[%emt 0:00:01]} Rf8 {[%emt 0:00:04]} 19. Nbd2 {[%emt 0:00:18]} Rf4 {[%emt 0:00:06]} 20. Rfe1 {[%emt 0:00:06]} Raf8 {[%emt 0:00:02]} 21. Re3 {[%emt 0:00:14]} Ng4 {[%emt 0:00:04]} 22. Rae1 {[%emt 0:00:09]} Qh5 {[%emt 0:00:26]} 23. Kf1 {[%emt 0:01:11]} Qh3+ {[%emt 0:00:16]} 24. Ke2 {[%emt 0:00:18]} Nxe3 {[%emt 0:00:02]} 25. fxe3 {[%emt 0:00:20]} Rxf3 {[%emt 0:00:02]} 26. Nxf3 {[%emt 0:00:01]} Qxf3+ {[%emt 0:00:17]} 27. Kd2 {[%emt 0:00:00]} a6 {[%emt 0:00:06]} 28. Qa3 {[%emt 0:00:04]} Qg2+ {[%emt 0:00:02]} 29. Re2 {[%emt 0:00:00]} Qxg5 {[%emt 0:00:01]} 30. Qc1 {[%emt 0:00:02]} Nd7 {[%emt 0:00:10]} 31. Qh1 {[%emt 0:00:08]} Nc5 {[%emt 0:00:09]} 32. Rg2 {[%emt 0:00:05]} Qf6 {[%emt 0:00:10]} 33. Rh2 {[%emt 0:00:05]} h6 {[%emt 0:00:13]} 34. Rg2 {[%emt 0:00:01]} Nxd3 {[%emt 0:00:10]} 35. Kxd3 {[%emt 0:00:02]} Qf1+ {[%emt 0:00:01]} 0-1

[Event "RUS-ch Rapid Men 2018"]
[Site "Sochi"]
[Date "2018.10.05"]
[Round "1"]
[White "Mnatsakanian, Arsen"]
[Black "Savchenko, Boris"]
[Result "0-1"]
[ECO "C02"]
[WhiteElo "2160"]
[BlackElo "2562"]
[Annotator "ChessBase"]
[PlyCount "76"]
[EventDate "2018.10.05"]
[EventType "swiss"]
[EventCountry "RUS"]
[SourceTitle "playchess.com"]
[Source "ChessBase"]
[SourceQuality "1"]
[TimeControl "900+10"]

1. e4 {[%emt 0:00:00]} e6 {[%emt 0:00:10]} 2. d4 {[%emt 0:00:00]} d5 {[%emt 0:00:02]} 3. e5 {[%emt 0:00:00]} c5 {[%emt 0:00:02]} 4. c3 {[%emt 0:00:00]} Bd7 {[%emt 0:00:02]} 5. Nf3 {[%emt 0:00:12]} Nc6 {[%emt 0:00:02]} 6. a3 {[%emt 0:00:04]} c4 {[%emt 0:00:03]} 7. Nbd2 {[%emt 0:00:23]} Na5 {[%emt 0:00:08]} 8. g3 {[%emt 0:00:17]} Ne7 {[%emt 0:00:24]} 9. Bg2 {[%emt 0:00:07]} Nc8 {[%emt 0:00:03]} 10. O-O {[%emt 0:00:44]} Be7 {[%emt 0:00:04]} 11. Re1 {[%emt 0:00:13]} Nb6 {[%emt 0:00:06]} 12. Nf1 {[%emt 0:00:42]} Nb3 {[%emt 0:00:15]} 13. Rb1 {[%emt 0:00:01]} Nxc1 {[%emt 0:00:10]} 14. Qxc1 {[%emt 0:00:19]} Na4 {[%emt 0:01:23]} 15. h4 {[%emt 0:00:18]} Qa5 {[%emt 0:01:16]} 16. g4 {[%emt 0:02:49]} O-O-O {[%emt 0:00:10]} 17. Ng3 {[%emt 0:00:25]} Kb8 {[%emt 0:00:27]} 18. Ng5 {[%emt 0:01:57]} Rdf8 {[%emt 0:00:03]} 19. f4 {[%emt 0:01:13]} Qd8 {[%emt 0:00:38]} 20. h5 {[%emt 0:00:11]} h6 {[%emt 0:00:17]} 21. Nf3 {[%emt 0:00:03]} g6 {[%emt 0:00:02]} 22. Bh3 {[%emt 0:02:28]} a6 {[%emt 0:03:57]} 23. Kh2 {[%emt 0:00:54]} Ka7 {[%emt 0:00:12]} 24. f5 {[%emt 0:00:26]} exf5 {[%emt 0:03:28]} 25. gxf5 {[%emt 0:00:03]} gxf5 {[%emt 0:00:06]} 26. Nxf5 {[%emt 0:00:32]} Bg5 {[%emt 0:00:44]} 27. Nxg5 {[%emt 0:00:20]} hxg5 {[%emt 0:00:22]} 28. Qd1 {[%emt 0:00:21]} Rfg8 {[%emt 0:00:57]} 29. Rg1 {[%emt 0:01:45]} g4 {[%emt 0:03:02]} 30. Bxg4 {[%emt 0:01:22]} Rg5 {[%emt 0:01:01]} 31. Ne3 {[%emt 0:01:12]} Bxg4 {[%emt 0:00:21]} 32. Rxg4 {[%emt 0:00:01]} Rgxh5+ {[%emt 0:00:05]} 33. Kg3 {[%emt 0:00:03]} Rh2 {[%emt 0:00:08]} 34. Ng2 {[%emt 0:00:42]} f6 {[%emt 0:00:09]} 35. Qxa4 {[%emt 0:00:18]} fxe5 {[%emt 0:00:02]} 36. Rf1 {[%emt 0:00:11]} R8h3+ {[%emt 0:00:21]} 37. Kf2 {[%emt 0:00:02]} Qf6+ {[%emt 0:00:11]} 38. Ke1 {[%emt 0:00:03]} Rh1 0-1

[Event "RUS-ch Rapid Men 2018"]
[Site "Sochi"]
[Date "2018.10.05"]
[Round "1"]
[White "Arbuzov, Mikhail"]
[Black "Yuffa, Daniil"]
[Result "0-1"]
[ECO "E81"]
[WhiteElo "2146"]
[BlackElo "2563"]
[Annotator "ChessBase"]
[PlyCount "72"]
[EventDate "2018.10.05"]
[EventType "swiss"]
[EventCountry "RUS"]
[SourceTitle "playchess.com"]
[Source "ChessBase"]
[SourceQuality "1"]
[TimeControl "900+10"]

1. d4 {[%emt 0:00:00]} Nf6 {[%emt 0:00:00]} 2. c4 {[%emt 0:00:00]} g6 {[%emt 0:00:01]} 3. f3 {[%emt 0:00:00]} Bg7 {[%emt 0:00:06]} 4. e4 {[%emt 0:00:00]} O-O {[%emt 0:00:02]} 5. Nc3 {[%emt 0:00:00]} d6 {[%emt 0:00:02]} 6. Be3 {[%emt 0:00:00]} c5 {[%emt 0:00:01]} 7. d5 {[%emt 0:00:02]} e6 {[%emt 0:00:05]} 8. Qd2 {[%emt 0:00:10]} exd5 {[%emt 0:00:36]} 9. cxd5 {[%emt 0:00:02]} a6 {[%emt 0:00:02]} 10. a4 {[%emt 0:00:02]} Re8 {[%emt 0:00:01]} 11. Nge2 {[%emt 0:01:36]} h5 {[%emt 0:00:02]} 12. Nc1 {[%emt 0:00:56]} Nbd7 {[%emt 0:00:17]} 13. Be2 {[%emt 0:00:19]} h4 {[%emt 0:00:02]} 14. O-O {[%emt 0:05:38]} Rb8 {[%emt 0:00:10]} 15. N1a2 {[%emt 0:00:33]} h3 {[%emt 0:00:25]} 16. g3 {[%emt 0:00:22]} Ne5 {[%emt 0:00:29]} 17. Rab1 {[%emt 0:00:46]} b5 {[%emt 0:03:46]} 18. b4 {[%emt 0:02:34]} c4 {[%emt 0:02:09]} 19. a5 {[%emt 0:00:42]} Nh7 {[%emt 0:00:34]} 20. Bd4 {[%emt 0:01:11]} f5 {[%emt 0:00:19]} 21. f4 {[%emt 0:00:50]} Nf7 {[%emt 0:00:15]} 22. Bxg7 {[%emt 0:00:01]} Kxg7 {[%emt 0:00:02]} 23. Bf3 {[%emt 0:01:00]} Nf6 {[%emt 0:02:06]} 24. Rbe1 {[%emt 0:00:37]} fxe4 {[%emt 0:00:23]} 25. Nxe4 {[%emt 0:00:42]} Nxe4 {[%emt 0:00:04]} 26. Bxe4 {[%emt 0:00:01]} Qf6 {[%emt 0:00:09]} 27. Nc3 {[%emt 0:00:26]} Nh6 {[%emt 0:01:22]} 28. Bf3 {[%emt 0:00:41]} Bf5 {[%emt 0:00:07]} 29. Ne4 {[%emt 0:00:24]} Bxe4 {[%emt 0:00:06]} 30. Bxe4 {[%emt 0:00:00]} c3 {[%emt 0:00:35]} 31. Qd3 {[%emt 0:00:20]} Rbc8 32. Bf3 Nf5 {[%emt 0:01:44]} 33. Bg4 {[%emt 0:00:22]} Rxe1 {[%emt 0:00:40]} 34. Rxe1 {[%emt 0:00:06]} c2 {[%emt 0:00:03]} 35. Rc1 {[%emt 0:00:13]} Qd4+ {[%emt 0:00:22]} 36. Qxd4+ {[%emt 0:00:01]} Nxd4 {[%emt 0:00:02]} 0-1

[Event "RUS-ch Rapid Men 2018"]
[Site "Sochi"]
[Date "2018.10.05"]
[Round "1"]
[White "Liberman, Evgeny"]
[Black "Sychev, Klementy"]
[Result "0-1"]
[ECO "B50"]
[WhiteElo "2134"]
[BlackElo "2534"]
[Annotator "ChessBase"]
[PlyCount "72"]
[EventDate "2018.10.05"]
[EventType "swiss"]
[EventCountry "RUS"]
[SourceTitle "playchess.com"]
[Source "ChessBase"]
[SourceQuality "1"]
[TimeControl "900+10"]

1. e4 {[%emt 0:00:00]} c5 {[%emt 0:00:00]} 2. Nf3 {[%emt 0:00:00]} d6 {[%emt 0:00:00]} 3. g3 {[%emt 0:00:00]} Nc6 {[%emt 0:00:00]} 4. Bg2 {[%emt 0:00:01]} g6 {[%emt 0:00:00]} 5. O-O {[%emt 0:00:04]} Bg7 {[%emt 0:00:01]} 6. Nc3 {[%emt 0:00:01]} e5 {[%emt 0:00:54]} 7. a3 {[%emt 0:00:15]} Nge7 {[%emt 0:00:09]} 8. Rb1 {[%emt 0:00:02]} O-O {[%emt 0:00:11]} 9. b4 {[%emt 0:00:02]} b6 {[%emt 0:00:07]} 10. d3 {[%emt 0:01:00]} h6 {[%emt 0:00:07]} 11. Ne2 {[%emt 0:02:45]} Be6 {[%emt 0:00:20]} 12. c4 {[%emt 0:00:19]} Qd7 {[%emt 0:00:04]} 13. b5 {[%emt 0:03:03]} Nd8 {[%emt 0:00:23]} 14. Ne1 {[%emt 0:03:15]} Bh3 {[%emt 0:00:07]} 15. f4 {[%emt 0:01:16]} Bxg2 {[%emt 0:00:03]} 16. Nxg2 {[%emt 0:00:01]} f5 {[%emt 0:00:08]} 17. Qc2 {[%emt 0:00:01]} Ne6 {[%emt 0:00:27]} 18. Bb2 {[%emt 0:00:04]} Rf7 {[%emt 0:00:10]} 19. Rf2 {[%emt 0:01:41]} Nd4 {[%emt 0:02:18]} 20. Nxd4 {[%emt 0:01:24]} cxd4 {[%emt 0:00:11]} 21. fxe5 {[%emt 0:00:47]} dxe5 {[%emt 0:00:05]} 22. Rbf1 {[%emt 0:00:04]} Raf8 {[%emt 0:00:11]} 23. Qe2 {[%emt 0:00:13]} Qd6 {[%emt 0:01:54]} 24. Bc1 {[%emt 0:00:08]} Kh7 {[%emt 0:02:08]} 25. Qe1 {[%emt 0:01:17]} Bf6 {[%emt 0:02:35]} 26. Kh1 {[%emt 0:00:20]} Bg5 {[%emt 0:01:46]} 27. exf5 {[%emt 0:00:31]} gxf5 {[%emt 0:00:33]} 28. Re2 {[%emt 0:00:04]} Bxc1 {[%emt 0:00:30]} 29. Qxc1 {[%emt 0:00:04]} Ng6 {[%emt 0:00:02]} 30. Rfe1 {[%emt 0:00:57]} f4 {[%emt 0:02:25]} 31. gxf4 {[%emt 0:00:03]} exf4 {[%emt 0:00:01]} 32. Re6 {[%emt 0:00:18]} Qd7 {[%emt 0:00:01]} 33. R6e4 {[%emt 0:00:06]} f3 {[%emt 0:01:27]} 34. Nh4 {[%emt 0:00:19]} Qh3 {[%emt 0:00:14]} 35. Rg1 {[%emt 0:00:10]} Nxh4 {[%emt 0:00:21]} 36. Rg3 {[%emt 0:00:01]} Qg2+ {[%emt 0:00:05]} 0-1

[Event "RUS-ch Rapid Men 2018"]
[Site "Sochi"]
[Date "2018.10.05"]
[Round "1"]
[White "Pervakov, Sergey"]
[Black "Antipov, Mikhail Al."]
[Result "0-1"]
[ECO "C03"]
[WhiteElo "2098"]
[BlackElo "2593"]
[Annotator "ChessBase"]
[PlyCount "58"]
[EventDate "2018.10.05"]
[EventType "swiss"]
[EventCountry "RUS"]
[SourceTitle "playchess.com"]
[Source "ChessBase"]
[SourceQuality "1"]
[TimeControl "900+10"]

1. e4 {[%emt 0:00:00]} e6 {[%emt 0:00:00]} 2. d4 {[%emt 0:00:00]} d5 {[%emt 0:00:00]} 3. Nd2 {[%emt 0:00:00]} h6 {[%emt 0:00:00]} 4. Ngf3 {[%emt 0:00:00]} Nf6 {[%emt 0:00:00]} 5. Bd3 {[%emt 0:00:04]} c5 {[%emt 0:00:00]} 6. c3 {[%emt 0:00:03]} Nc6 {[%emt 0:00:16]} 7. O-O {[%emt 0:00:14]} cxd4 {[%emt 0:00:04]} 8. cxd4 {[%emt 0:00:02]} dxe4 {[%emt 0:00:03]} 9. Nxe4 {[%emt 0:00:02]} Be7 {[%emt 0:00:01]} 10. Nc3 {[%emt 0:00:23]} O-O {[%emt 0:00:08]} 11. a3 {[%emt 0:00:03]} b6 {[%emt 0:00:04]} 12. Re1 {[%emt 0:00:58]} Bb7 {[%emt 0:00:03]} 13. Bc2 {[%emt 0:00:05]} Qc7 {[%emt 0:04:27]} 14. Qd3 {[%emt 0:01:36]} Rfd8 {[%emt 0:00:18]} 15. Be3 {[%emt 0:00:50]} Nb8 {[%emt 0:04:11]} 16. Ne5 {[%emt 0:03:30]} Ba6 {[%emt 0:00:02]} 17. Qd2 {[%emt 0:00:43]} Nc6 {[%emt 0:00:45]} 18. Nf3 {[%emt 0:03:04]} Bf8 {[%emt 0:01:04]} 19. Rad1 {[%emt 0:00:37]} Rac8 {[%emt 0:00:23]} 20. Bf4 {[%emt 0:01:33]} Qe7 {[%emt 0:01:25]} 21. Qe3 {[%emt 0:01:04]} Qb7 {[%emt 0:00:46]} 22. Ne5 {[%emt 0:00:48]} Ne7 {[%emt 0:00:20]} 23. Nxf7 {[%emt 0:00:52]} Ned5 {[%emt 0:00:01]} 24. Nxd8 {[%emt 0:00:26]} Nxe3 {[%emt 0:00:01]} 25. Nxb7 {[%emt 0:00:12]} Nxc2 {[%emt 0:00:02]} 26. Rxe6 {[%emt 0:00:54]} Bxb7 {[%emt 0:00:06]} 27. Re2 {[%emt 0:00:27]} Nxa3 {[%emt 0:00:02]} 28. d5 {[%emt 0:00:48]} Ba6 {[%emt 0:00:01]} 29. Re6 {[%emt 0:00:15]} Nc4 {[%emt 0:00:18]} 0-1

[Event "RUS-ch Rapid Men 2018"]
[Site "Sochi"]
[Date "2018.10.05"]
[Round "1"]
[White "Semukhin, Mihail"]
[Black "Bocharov, Dmitry"]
[Result "0-1"]
[ECO "A49"]
[WhiteElo "2036"]
[BlackElo "2562"]
[Annotator "ChessBase"]
[PlyCount "64"]
[EventDate "2018.10.05"]
[EventType "swiss"]
[EventCountry "RUS"]
[SourceTitle "playchess.com"]
[Source "ChessBase"]
[SourceQuality "1"]
[TimeControl "900+10"]

1. d4 {[%emt 0:00:00]} Nf6 {[%emt 0:00:00]} 2. Nf3 {[%emt 0:00:01]} g6 {[%emt 0:00:24]} 3. g3 {[%emt 0:00:34]} c5 {[%emt 0:00:16]} 4. c4 {[%emt 0:00:58]} Nc6 {[%emt 0:02:38]} 5. Bg2 {[%emt 0:00:28]} cxd4 {[%emt 0:00:14]} 6. Nxd4 {[%emt 0:00:06]} Bg7 {[%emt 0:00:01]} 7. O-O {[%emt 0:00:17]} O-O {[%emt 0:00:05]} 8. Nc3 {[%emt 0:00:14]} Qa5 {[%emt 0:00:37]} 9. Nb3 {[%emt 0:05:46]} Qh5 {[%emt 0:00:49]} 10. e4 {[%emt 0:00:35]} Qxd1 {[%emt 0:00:25]} 11. Rxd1 {[%emt 0:00:02]} d6 {[%emt 0:00:02]} 12. Bf4 {[%emt 0:00:50]} Be6 {[%emt 0:01:00]} 13. Nd5 {[%emt 0:00:16]} Nd7 {[%emt 0:01:33]} 14. Nc7 {[%emt 0:01:56]} Rac8 {[%emt 0:00:05]} 15. Nxe6 {[%emt 0:00:04]} fxe6 {[%emt 0:00:02]} 16. Bh3 {[%emt 0:00:24]} Kf7 {[%emt 0:00:03]} 17. c5 {[%emt 0:01:11]} Nxc5 {[%emt 0:00:34]} 18. Nxc5 {[%emt 0:00:02]} dxc5 {[%emt 0:00:02]} 19. Rd7 {[%emt 0:01:23]} b6 {[%emt 0:00:03]} 20. Rad1 {[%emt 0:01:07]} Bd4 {[%emt 0:00:45]} 21. Bc7 {[%emt 0:01:19]} Bxb2 {[%emt 0:03:22]} 22. Bf1 {[%emt 0:00:43]} Be5 {[%emt 0:00:37]} 23. Bxe5 {[%emt 0:00:07]} Nxe5 {[%emt 0:00:01]} 24. Rxa7 {[%emt 0:00:06]} Rfd8 {[%emt 0:00:27]} 25. Rb1 {[%emt 0:00:13]} Ra8 {[%emt 0:00:34]} 26. Rxa8 {[%emt 0:00:12]} Rxa8 {[%emt 0:00:02]} 27. Rxb6 {[%emt 0:00:21]} Rxa2 {[%emt 0:00:02]} 28. Rb8 {[%emt 0:00:11]} c4 {[%emt 0:00:15]} 29. Rc8 {[%emt 0:00:04]} Rc2 {[%emt 0:00:02]} 30. Kg2 {[%emt 0:00:12]} h5 {[%emt 0:00:21]} 31. h4 {[%emt 0:00:02]} Ng4 {[%emt 0:00:09]} 32. Rxc4 {[%emt 0:00:19]} Rxf2+ {[%emt 0:00:05]} 0-1

[Event "RUS-ch Rapid Men 2018"]
[Site "Sochi"]
[Date "2018.10.05"]
[Round "1"]
[White "Girshgorn, Leonid"]
[Black "Alekseev, Evgeny"]
[Result "0-1"]
[ECO "A45"]
[WhiteElo "1925"]
[BlackElo "2620"]
[Annotator "ChessBase"]
[PlyCount "106"]
[EventDate "2018.10.05"]
[EventType "swiss"]
[EventCountry "RUS"]
[SourceTitle "playchess.com"]
[Source "ChessBase"]
[SourceQuality "1"]
[TimeControl "900+10"]

1. d4 {[%emt 0:00:00]} Nf6 {[%emt 0:00:00]} 2. Bf4 {[%emt 0:00:00]} e6 {[%emt 0:00:07]} 3. e3 {[%emt 0:00:00]} c5 {[%emt 0:00:09]} 4. c3 {[%emt 0:00:01]} Nc6 {[%emt 0:00:14]} 5. Nd2 {[%emt 0:00:02]} d5 {[%emt 0:00:05]} 6. Ngf3 {[%emt 0:00:09]} cxd4 {[%emt 0:00:09]} 7. exd4 {[%emt 0:00:03]} Nh5 {[%emt 0:00:06]} 8. Bg5 {[%emt 0:00:58]} f6 {[%emt 0:00:14]} 9. Be3 {[%emt 0:00:20]} Bd6 {[%emt 0:00:16]} 10. Bb5 {[%emt 0:01:41]} O-O {[%emt 0:01:36]} 11. O-O {[%emt 0:00:03]} a6 {[%emt 0:02:21]} 12. Ba4 {[%emt 0:02:37]} g6 {[%emt 0:00:55]} 13. c4 {[%emt 0:00:49]} Ne7 {[%emt 0:00:09]} 14. Bb3 {[%emt 0:00:56]} Kh8 {[%emt 0:00:35]} 15. Re1 {[%emt 0:00:40]} Ng7 {[%emt 0:00:15]} 16. cxd5 {[%emt 0:00:13]} exd5 {[%emt 0:00:03]} 17. Bh6 {[%emt 0:00:45]} Re8 {[%emt 0:02:56]} 18. Bxg7+ {[%emt 0:00:06]} Kxg7 {[%emt 0:00:01]} 19. Nf1 {[%emt 0:01:09]} Bf5 {[%emt 0:00:09]} 20. Nh4 {[%emt 0:00:52]} Bd7 {[%emt 0:00:17]} 21. Ne3 {[%emt 0:00:47]} Be6 {[%emt 0:01:17]} 22. Qf3 {[%emt 0:00:38]} Qd7 {[%emt 0:00:14]} 23. g3 {[%emt 0:00:43]} Bc7 {[%emt 0:00:19]} 24. Nhg2 {[%emt 0:01:26]} g5 {[%emt 0:01:01]} 25. h4 {[%emt 0:00:42]} h6 {[%emt 0:00:11]} 26. h5 {[%emt 0:00:30]} f5 {[%emt 0:00:55]} 27. Bc2 {[%emt 0:00:27]} Rf8 {[%emt 0:00:25]} 28. Re2 {[%emt 0:01:10]} g4 {[%emt 0:01:22]} 29. Nxg4 {[%emt 0:00:29]} fxg4 {[%emt 0:00:02]} 30. Qe3 {[%emt 0:00:01]} Rf6 {[%emt 0:00:03]} 31. Rae1 {[%emt 0:00:29]} Nc6 {[%emt 0:00:59]} 32. Qxe6 {[%emt 0:01:05]} Rxe6 {[%emt 0:00:07]} 33. Rxe6 {[%emt 0:00:03]} Rh8 {[%emt 0:00:55]} 34. Nh4 {[%emt 0:00:19]} Bd8 {[%emt 0:00:11]} 35. Nf5+ {[%emt 0:00:06]} Kf8 {[%emt 0:00:08]} 36. Rd6 {[%emt 0:00:19]} Qf7 {[%emt 0:00:20]} 37. Ree6 {[%emt 0:00:19]} Bc7 {[%emt 0:01:12]} 38. Rf6 {[%emt 0:00:02]} Bxd6 {[%emt 0:00:02]} 39. Rxf7+ {[%emt 0:00:01]} Kxf7 {[%emt 0:00:01]} 40. Nxd6+ {[%emt 0:00:01]} Kf6 {[%emt 0:00:14]} 41. Bb3 {[%emt 0:00:36]} Nxd4 {[%emt 0:00:31]} 42. Bxd5 {[%emt 0:00:01]} Rd8 {[%emt 0:00:03]} 43. Ne4+ {[%emt 0:00:02]} Ke5 {[%emt 0:00:11]} 44. Bxb7 {[%emt 0:00:02]} Nf3+ {[%emt 0:00:13]} 45. Kf1 {[%emt 0:00:10]} a5 {[%emt 0:00:36]} 46. a3 {[%emt 0:00:33]} Rd1+ {[%emt 0:00:11]} 47. Ke2 {[%emt 0:00:01]} Rb1 {[%emt 0:00:02]} 48. Nc5 {[%emt 0:00:13]} Rxb2+ {[%emt 0:00:13]} 49. Ke3 {[%emt 0:00:01]} Rb5 {[%emt 0:00:16]} 50. Nd3+ {[%emt 0:00:05]} Kf6 {[%emt 0:00:14]} 51. Bc8 {[%emt 0:00:33]} Rb3 {[%emt 0:00:07]} 52. Ke4 {[%emt 0:00:06]} Rxa3 {[%emt 0:00:10]} 53. Bxg4 {[%emt 0:00:02]} Rxd3 0-1

[Event "RUS-ch Rapid Men 2018"]
[Site "Sochi"]
[Date "2018.10.05"]
[Round "2"]
[White "Alekseev, Evgeny"]
[Black "Kozak, Alexander"]
[Result "1-0"]
[ECO "B13"]
[WhiteElo "2620"]
[BlackElo "2262"]
[Annotator "RC"]
[PlyCount "67"]
[EventDate "2018.10.05"]
[EventType "swiss"]
[EventCountry "RUS"]
[SourceTitle "playchess.com"]
[Source "ChessBase"]
[SourceQuality "1"]
[TimeControl "900+10"]

1. e4 {[%emt 0:00:00]} c6 {[%emt 0:00:00]} 2. d4 {[%emt 0:00:02]} d5 {[%emt 0:00:00]} 3. exd5 {[%emt 0:00:09]} cxd5 {[%emt 0:00:00]} 4. Nf3 {[%emt 0:00:13]} Nc6 {[%emt 0:00:00]} 5. Ne5 {[%emt 0:00:04]} Nf6 {[%emt 0:00:14]} 6. Bb5 {[%emt 0:00:06]} Bd7 {[%emt 0:00:01]} 7. Nxd7 {[%emt 0:00:05]} Qxd7 {[%emt 0:00:01]} 8. c3 {[%emt 0:00:06]} e6 {[%emt 0:00:02]} 9. O-O {[%emt 0:00:14]} Bd6 {[%emt 0:00:01]} 10. Nd2 {[%emt 0:00:15]} O-O {[%emt 0:00:07]} 11. Bd3 {[%emt 0:00:08]} Rab8 {[%emt 0:00:07]} 12. a4 {[%emt 0:00:13]} a6 {[%emt 0:00:05]} 13. Qe2 {[%emt 0:02:47]} b5 {[%emt 0:00:03]} 14. Nf3 {[%emt 0:00:55]} Qb7 {[%emt 0:00:43]} 15. b4 {[%emt 0:01:02]} Rfc8 {[%emt 0:00:06]} 16. Bd2 {[%emt 0:00:43]} Ne4 {[%emt 0:01:14]} 17. Bxe4 {[%emt 0:01:15]} dxe4 {[%emt 0:00:02]} 18. Qxe4 {[%emt 0:01:11]} Ne7 {[%emt 0:00:19]} 19. Ng5 {[%emt 0:00:36]} g6 {[%emt 0:00:36]} 20. axb5 {[%emt 0:00:37]} axb5 {[%emt 0:00:02]} 21. Qxb7 {[%emt 0:00:50]} Rxb7 {[%emt 0:00:01]} 22. Ne4 {[%emt 0:00:09]} Rb6 {[%emt 0:00:36]} 23. Ra5 {[%emt 0:01:28]} Nd5 {[%emt 0:00:05]} 24. Rxb5 {[%emt 0:00:57]} Bf4 {[%emt 0:03:07]} 25. Rxb6 {[%emt 0:00:28]} Bxd2 {[%emt 0:00:02]} 26. Rb5 {[%emt 0:01:26]} Nxc3 {[%emt 0:00:09]} 27. Nxc3 {[%emt 0:00:09]} Rxc3 {[%emt 0:00:10]} 28. d5 {[%emt 0:00:06]} exd5 {[%emt 0:00:48]} 29. Rxd5 {[%emt 0:00:03]} Bf4 {[%emt 0:00:08]} 30. g3 {[%emt 0:00:25]} Bc7 {[%emt 0:00:02]} 31. Rc5 {[%emt 0:00:06]} Rxc5 {[%emt 0:00:03]} 32. bxc5 {[%emt 0:00:01]} Kf8 {[%emt 0:00:01]} 33. Re1 {[%emt 0:00:03]} Ba5 {[%emt 0:00:02]} 34. Re2 {[%emt 0:00:03]} 1-0